[Event "*** Titled Tuesday Blitz"]
[Site "Chess.com"]
[Date "2020.05.12"]
[Round "3"]
[White "PhileKhoob"]
[Black "ThunderrPanda"]
[Result "0-1"]
[WhiteElo "2437"]
[BlackElo "2804"]
[TimeControl "180+1"]
[EndTime "10:29:39 PDT"]
[Termination "ThunderrPanda won by resignation"]

1. e4 {[%clk 0:03:00.9]} 1... c5 {[%clk 0:02:59.5]} 2. Nf3 {[%clk 0:03:00.3]}
2... d6 {[%clk 0:02:59.7]} 3. d4 {[%clk 0:02:59.8]} 3... cxd4 {[%clk 0:03:00.6]}
4. Nxd4 {[%clk 0:03:00.4]} 4... Nf6 {[%clk 0:03:00.8]} 5. Nc3 {[%clk 0:03:00.7]}
5... a6 {[%clk 0:03:00.7]} 6. Bg5 {[%clk 0:03:01.3]} 6... e6 {[%clk 0:03:00.5]}
7. Bc4 {[%clk 0:03:01.8]} 7... Be7 {[%clk 0:02:56]} 8. Qd2 {[%clk 0:03:00.9]}
8... Qc7 {[%clk 0:02:55.7]} 9. Bb3 {[%clk 0:03:00.3]} 9... h6 {[%clk 0:02:52.9]}
10. Be3 {[%clk 0:02:58.3]} 10... Nc6 {[%clk 0:02:49.7]} 11. O-O-O {[%clk
0:02:56.8]} 11... Na5 {[%clk 0:02:49.2]} 12. f3 {[%clk 0:02:54.9]} 12... Nc4
{[%clk 0:02:45.7]} 13. Bxc4 {[%clk 0:02:54.3]} 13... Qxc4 {[%clk 0:02:46.6]} 14.
Kb1 {[%clk 0:02:55]} 14... Nd7 {[%clk 0:02:39.4]} 15. g4 {[%clk 0:02:50]} 15...
b5 {[%clk 0:02:35.8]} 16. h4 {[%clk 0:02:41.8]} 16... Ne5 {[%clk 0:02:31.6]} 17.
g5 {[%clk 0:02:30.7]} 17... Qc7 {[%clk 0:02:28]} 18. b3 {[%clk 0:02:21.4]} 18...
Bb7 {[%clk 0:02:16.5]} 19. Rhg1 {[%clk 0:01:46.1]} 19... Rc8 {[%clk 0:01:49.9]}
20. Nce2 {[%clk 0:01:26.2]} 20... h5 {[%clk 0:01:27.3]} 21. g6 {[%clk
0:01:03.4]} 21... Bf6 {[%clk 0:01:01.3]} 22. gxf7+ {[%clk 0:01:01.4]} 22... Qxf7
{[%clk 0:00:41.8]} 23. Nf4 {[%clk 0:00:56.7]} 23... Nxf3 {[%clk 0:00:42.1]} 24.
Nxf3 {[%clk 0:00:53.9]} 24... Bxe4 {[%clk 0:00:42.4]} 25. Ng5 {[%clk 0:00:48.9]}
25... Bxg5 {[%clk 0:00:41.4]} 26. Rxg5 {[%clk 0:00:47.3]} 26... Rxc2 {[%clk
0:00:31.8]} 27. Qxc2 {[%clk 0:00:47.2]} 27... Bxc2+ {[%clk 0:00:32.7]} 28. Kxc2
{[%clk 0:00:48.1]} 28... e5 {[%clk 0:00:11.3]} 29. Ng6 {[%clk 0:00:30.5]} 29...
Rh6 {[%clk 0:00:10.4]} 30. Rdg1 {[%clk 0:00:21.7]} 30... Qd5 {[%clk 0:00:11]}
31. Bd2 {[%clk 0:00:20]} 31... Qe4+ {[%clk 0:00:10.9]} 32. Kb2 {[%clk
0:00:18.6]} 32... Kd7 {[%clk 0:00:11.2]} 33. Bc3 {[%clk 0:00:17.5]} 33... Qe2+
{[%clk 0:00:11.3]} 34. Ka1 {[%clk 0:00:16.6]} 34... Qc2 {[%clk 0:00:10.4]} 35.
Bb2 {[%clk 0:00:16.7]} 35... a5 {[%clk 0:00:10.2]} 36. Rc1 {[%clk 0:00:17.1]}
36... Qd2 {[%clk 0:00:09.7]} 37. Rgg1 {[%clk 0:00:15]} 37... Qd3 {[%clk
0:00:08.6]} 38. Nf8+ {[%clk 0:00:14.8]} 38... Ke7 {[%clk 0:00:08.2]} 39. Rcd1
{[%clk 0:00:13]} 39... Qh3 {[%clk 0:00:06.3]} 40. Ng6+ {[%clk 0:00:12.5]} 40...
Ke6 {[%clk 0:00:05.8]} 41. Rde1 {[%clk 0:00:09.3]} 41... Qf5 {[%clk 0:00:05.3]}
42. Nxe5 {[%clk 0:00:08.8]} 42... dxe5 {[%clk 0:00:05.7]} 43. Rxe5+ {[%clk
0:00:08.9]} 43... Qxe5 {[%clk 0:00:06.6]} 44. Bxe5 {[%clk 0:00:09.3]} 44... Kxe5
{[%clk 0:00:07.5]} 45. Rxg7 {[%clk 0:00:09.8]} 45... Kf4 {[%clk 0:00:03.8]} 46.
Rg5 {[%clk 0:00:09.6]} 46... a4 {[%clk 0:00:02.8]} 47. Rxb5 {[%clk 0:00:09.8]}
47... a3 {[%clk 0:00:02.7]} 48. Ra5 {[%clk 0:00:09.2]} 48... Kg4 {[%clk
0:00:02.6]} 49. Ra4+ {[%clk 0:00:09.4]} 49... Kg3 {[%clk 0:00:03.5]} 50. Rxa3
{[%clk 0:00:10.3]} 50... Kxh4 {[%clk 0:00:04.4]} 51. b4 {[%clk 0:00:10.6]} 51...
Kg4 {[%clk 0:00:05.2]} 52. Rb3 {[%clk 0:00:11.1]} 52... h4 {[%clk 0:00:05.8]}
53. a4 {[%clk 0:00:10.5]} 53... h3 {[%clk 0:00:05.9]} 54. Ka2 {[%clk 0:00:10.4]}
54... h2 {[%clk 0:00:06.4]} 55. Rb1 {[%clk 0:00:10.9]} 55... h1=Q {[%clk
0:00:06.7]} 56. Rxh1 {[%clk 0:00:11.4]} 56... Rxh1 {[%clk 0:00:07.6]} 57. Kb3
{[%clk 0:00:11.8]} 57... Kf5 {[%clk 0:00:08.3]} 58. Kc4 {[%clk 0:00:12.3]} 58...
Ke6 {[%clk 0:00:08.9]} 59. Kc5 {[%clk 0:00:12.4]} 59... Kd7 {[%clk 0:00:09.6]}
60. Kb6 {[%clk 0:00:12.7]} 60... Kc8 {[%clk 0:00:10.3]} 61. b5 {[%clk
0:00:13.2]} 61... Kb8 {[%clk 0:00:10.5]} 62. a5 {[%clk 0:00:13.7]} 62... Rh6+
{[%clk 0:00:10.4]} 63. Kc5 {[%clk 0:00:14.1]} 63... Kb7 {[%clk 0:00:11.1]} 64.
a6+ {[%clk 0:00:14.4]} 64... Ka7 {[%clk 0:00:11.7]} 65. Kb4 {[%clk 0:00:13.7]}
65... Kb6 {[%clk 0:00:12.3]} 0-1

[Event "*** Titled Tuesday Blitz"]
[Site "Chess.com"]
[Date "2020.05.12"]
[Round "3"]
[White "salomez"]
[Black "rst2003"]
[Result "1-0"]
[WhiteElo "2237"]
[BlackElo "2460"]
[TimeControl "180+1"]
[EndTime "10:29:41 PDT"]
[Termination "salomez won by resignation"]

1. e4 {[%clk 0:03:00.9]} 1... c5 {[%clk 0:02:59.2]} 2. Nf3 {[%clk 0:03:01.8]}
2... d6 {[%clk 0:02:59.2]} 3. d4 {[%clk 0:03:02.1]} 3... cxd4 {[%clk 0:02:59.9]}
4. Nxd4 {[%clk 0:03:02.3]} 4... Nf6 {[%clk 0:03:00.3]} 5. Nc3 {[%clk 0:03:02.8]}
5... a6 {[%clk 0:03:00.3]} 6. Bc4 {[%clk 0:03:03]} 6... e6 {[%clk 0:03:00]} 7.
O-O {[%clk 0:03:00.5]} 7... Be7 {[%clk 0:02:58.4]} 8. a4 {[%clk 0:03:00.6]} 8...
Nc6 {[%clk 0:02:57.8]} 9. Be3 {[%clk 0:03:00.7]} 9... Qc7 {[%clk 0:02:56.5]} 10.
Ba2 {[%clk 0:02:59.3]} 10... O-O {[%clk 0:02:55.2]} 11. f4 {[%clk 0:02:58.4]}
11... Bd7 {[%clk 0:02:54.7]} 12. Kh1 {[%clk 0:02:58.8]} 12... Rac8 {[%clk
0:02:49.8]} 13. Qf3 {[%clk 0:02:59.1]} 13... Nxd4 {[%clk 0:02:40.2]} 14. Bxd4
{[%clk 0:02:58.2]} 14... Bc6 {[%clk 0:02:40.5]} 15. Qg3 {[%clk 0:02:41.4]} 15...
g6 {[%clk 0:02:20.7]} 16. f5 {[%clk 0:02:36.4]} 16... e5 {[%clk 0:02:09.8]} 17.
fxg6 {[%clk 0:02:34.3]} 17... exd4 {[%clk 0:02:06.8]} 18. gxf7+ {[%clk
0:02:33.7]} 18... Kh8 {[%clk 0:02:05.7]} 19. Ne2 {[%clk 0:02:11.9]} 19... Nxe4
{[%clk 0:01:55.6]} 20. Qh3 {[%clk 0:01:53.6]} 20... Ng5 {[%clk 0:01:44.5]} 21.
Qg4 {[%clk 0:01:43.9]} 21... Qb6 {[%clk 0:01:23.1]} 22. Nxd4 {[%clk 0:01:36.7]}
22... d5 {[%clk 0:01:06.4]} 23. Rae1 {[%clk 0:01:24.8]} 23... Rc7 {[%clk
0:00:45.1]} 24. Rxe7 {[%clk 0:01:23.2]} 24... Rxe7 {[%clk 0:00:43.9]} 25. Qxg5
{[%clk 0:01:23.5]} 25... Rexf7 {[%clk 0:00:43.7]} 26. Qe5+ {[%clk 0:00:52.5]}
26... Kg8 {[%clk 0:00:38.8]} 27. Nf5 {[%clk 0:00:45.2]} 27... Rf6 {[%clk
0:00:07]} 28. Ne7+ {[%clk 0:00:39.4]} 28... Kg7 {[%clk 0:00:07.1]} 29. Rxf6
{[%clk 0:00:33.7]} 29... Rxf6 {[%clk 0:00:08]} 30. Ng8 {[%clk 0:00:33]} 30...
Kxg8 {[%clk 0:00:03.6]} 31. Qxf6 {[%clk 0:00:33.3]} 31... Qe3 {[%clk 0:00:04]}
32. h3 {[%clk 0:00:26.2]} 32... Qc1+ {[%clk 0:00:03.9]} 33. Kh2 {[%clk
0:00:25.7]} 33... Qxc2 {[%clk 0:00:04.5]} 34. Qg5+ {[%clk 0:00:24.1]} 34... Kf7
{[%clk 0:00:04.7]} 35. Bxd5+ {[%clk 0:00:23]} 35... Bxd5 {[%clk 0:00:05]} 36.
Qxd5+ {[%clk 0:00:23.6]} 36... Kg6 {[%clk 0:00:05.4]} 37. Qxb7 {[%clk
0:00:22.8]} 37... Qxa4 {[%clk 0:00:05.6]} 38. Qb6+ {[%clk 0:00:20.5]} 38... Kg7
{[%clk 0:00:05.6]} 39. Qc7+ {[%clk 0:00:17.4]} 39... Kg6 {[%clk 0:00:05.9]} 40.
Qc3 {[%clk 0:00:16.5]} 40... Qf4+ {[%clk 0:00:05.7]} 41. Qg3+ {[%clk 0:00:16.4]}
41... Qxg3+ {[%clk 0:00:06]} 42. Kxg3 {[%clk 0:00:16.6]} 42... Kf5 {[%clk
0:00:06.9]} 43. Kf3 {[%clk 0:00:16.6]} 43... Ke5 {[%clk 0:00:07]} 44. g4 {[%clk
0:00:17.5]} 44... Kd4 {[%clk 0:00:07.2]} 45. h4 {[%clk 0:00:17.3]} 45... Kc4
{[%clk 0:00:06.8]} 46. g5 {[%clk 0:00:17.5]} 46... Kb3 {[%clk 0:00:06.7]} 47. h5
{[%clk 0:00:18.4]} 47... Kxb2 {[%clk 0:00:07.2]} 48. g6 {[%clk 0:00:19.3]} 48...
hxg6 {[%clk 0:00:07.5]} 49. hxg6 {[%clk 0:00:19.4]} 49... a5 {[%clk 0:00:08.4]}
50. g7 {[%clk 0:00:19.6]} 50... a4 {[%clk 0:00:09.3]} 51. g8=Q {[%clk
0:00:20.4]} 51... a3 {[%clk 0:00:10.2]} 52. Qg7+ {[%clk 0:00:20]} 52... Kb1
{[%clk 0:00:10]} 53. Qb7+ {[%clk 0:00:18.8]} 53... Kc2 {[%clk 0:00:08.2]} 54.
Qc6+ {[%clk 0:00:18.5]} 54... Kb2 {[%clk 0:00:08]} 55. Qb5+ {[%clk 0:00:18.7]}
55... Ka1 {[%clk 0:00:06.1]} 56. Qe5+ {[%clk 0:00:14.4]} 56... Kb1 {[%clk
0:00:06.4]} 57. Qe4+ {[%clk 0:00:13.5]} 57... Ka1 {[%clk 0:00:06.1]} 58. Qd4+
{[%clk 0:00:13.5]} 58... Kb1 {[%clk 0:00:06.4]} 59. Qd3+ {[%clk 0:00:13.7]}
59... Kb2 {[%clk 0:00:06.2]} 60. Qd2+ {[%clk 0:00:12.8]} 60... Kb1 {[%clk
0:00:06.3]} 61. Qb4+ {[%clk 0:00:12.6]} 61... Ka2 {[%clk 0:00:06]} 62. Ke2
{[%clk 0:00:12.4]} 62... Ka1 {[%clk 0:00:05.6]} 63. Qxa3+ {[%clk 0:00:12.6]} 1-0

[Event "*** Titled Tuesday Blitz"]
[Site "Chess.com"]
[Date "2020.05.12"]
[Round "3"]
[White "emperor87"]
[Black "LiamVrolijk"]
[Result "0-1"]
[WhiteElo "2610"]
[BlackElo "2817"]
[TimeControl "180+1"]
[EndTime "10:29:45 PDT"]
[Termination "LiamVrolijk won by resignation"]

1. e4 {[%clk 0:03:00.7]} 1... e5 {[%clk 0:02:38.1]} 2. Nf3 {[%clk 0:03:00.4]}
2... Nc6 {[%clk 0:02:07.2]} 3. Bc4 {[%clk 0:02:58.8]} 3... Bc5 {[%clk
0:02:05.9]} 4. c3 {[%clk 0:02:53.3]} 4... Nf6 {[%clk 0:02:06.1]} 5. O-O {[%clk
0:02:51.3]} 5... Nxe4 {[%clk 0:02:01.6]} 6. d4 {[%clk 0:02:48.1]} 6... exd4
{[%clk 0:01:54.7]} 7. cxd4 {[%clk 0:02:47.7]} 7... d5 {[%clk 0:01:55.4]} 8. dxc5
{[%clk 0:02:44]} 8... dxc4 {[%clk 0:01:54.9]} 9. Qe2 {[%clk 0:02:43.7]} 9... Qe7
{[%clk 0:01:24.7]} 10. Re1 {[%clk 0:02:33.7]} 10... f5 {[%clk 0:01:21.4]} 11.
Qxc4 {[%clk 0:02:25.2]} 11... Be6 {[%clk 0:01:18]} 12. Qb5 {[%clk 0:02:22.5]}
12... O-O-O {[%clk 0:01:16.6]} 13. Nc3 {[%clk 0:02:15.2]} 13... Qxc5 {[%clk
0:01:09]} 14. Qxc5 {[%clk 0:02:06.4]} 14... Nxc5 {[%clk 0:01:09.9]} 15. Bg5
{[%clk 0:01:42.4]} 15... Rde8 {[%clk 0:01:09.7]} 16. Red1 {[%clk 0:01:38.1]}
16... h6 {[%clk 0:01:02.2]} 17. Be3 {[%clk 0:01:38]} 17... Nd7 {[%clk
0:00:54.2]} 18. a3 {[%clk 0:01:36.6]} 18... Nb6 {[%clk 0:00:53.6]} 19. Bxb6
{[%clk 0:01:33.8]} 19... axb6 {[%clk 0:00:53.6]} 20. b4 {[%clk 0:01:33.7]} 20...
Rd8 {[%clk 0:00:51]} 21. b5 {[%clk 0:01:32.9]} 21... Na5 {[%clk 0:00:50.6]} 22.
Nd4 {[%clk 0:01:30.5]} 22... Rhe8 {[%clk 0:00:50.7]} 23. Rab1 {[%clk 0:01:19.7]}
23... g5 {[%clk 0:00:48.3]} 24. f4 {[%clk 0:01:17.9]} 24... Nc4 {[%clk
0:00:42.8]} 25. a4 {[%clk 0:01:14.8]} 25... Ne3 {[%clk 0:00:37.9]} 26. Rd2
{[%clk 0:01:14.1]} 26... gxf4 {[%clk 0:00:28.8]} 27. Nce2 {[%clk 0:01:13.9]}
27... f3 {[%clk 0:00:18.3]} 28. gxf3 {[%clk 0:01:08.7]} 28... Bc4 {[%clk
0:00:15.9]} 29. Nf4 {[%clk 0:01:07.2]} 29... Nd5 {[%clk 0:00:12.9]} 30. Nxd5
{[%clk 0:00:55.1]} 30... Rxd5 {[%clk 0:00:13.8]} 31. Kf2 {[%clk 0:00:53]} 31...
Red8 {[%clk 0:00:12.4]} 32. Rbd1 {[%clk 0:00:50.2]} 32... f4 {[%clk 0:00:12.2]}
33. h4 {[%clk 0:00:47.6]} 33... c5 {[%clk 0:00:12.2]} 34. bxc6 {[%clk
0:00:45.7]} 34... bxc6 {[%clk 0:00:12.9]} 35. Ke1 {[%clk 0:00:43.4]} 35... Re8+
{[%clk 0:00:13.3]} 36. Kf2 {[%clk 0:00:42.3]} 36... Red8 {[%clk 0:00:14]} 37.
Ke1 {[%clk 0:00:42]} 37... c5 {[%clk 0:00:14.6]} 38. Nf5 {[%clk 0:00:41.5]}
38... Re8+ {[%clk 0:00:11.5]} 39. Kf2 {[%clk 0:00:40.6]} 39... Rxf5 {[%clk
0:00:12.2]} 40. Rc1 {[%clk 0:00:40.6]} 40... Bd5 {[%clk 0:00:12.1]} 41. a5
{[%clk 0:00:40.2]} 41... Kb7 {[%clk 0:00:11.6]} 42. Rb2 {[%clk 0:00:36.7]} 42...
Re6 {[%clk 0:00:10.9]} 43. Rxc5 {[%clk 0:00:36.6]} 43... Be4 {[%clk 0:00:10.8]}
44. Rxf5 {[%clk 0:00:34.5]} 44... Bxf5 {[%clk 0:00:11.7]} 45. Rb4 {[%clk
0:00:33.7]} 45... Bd3 {[%clk 0:00:07.6]} 46. axb6 {[%clk 0:00:33.4]} 46... Rxb6
{[%clk 0:00:08.5]} 47. Rxf4 {[%clk 0:00:32.7]} 47... Kc7 {[%clk 0:00:09]} 48.
Rd4 {[%clk 0:00:30.1]} 48... Rd6 {[%clk 0:00:09.4]} 49. Rf4 {[%clk 0:00:28.5]}
49... Kd7 {[%clk 0:00:10.3]} 50. Kg3 {[%clk 0:00:28.8]} 50... Ke7 {[%clk
0:00:10.4]} 51. Rb4 {[%clk 0:00:27.6]} 51... Bg6 {[%clk 0:00:10.5]} 52. Kf4
{[%clk 0:00:27.7]} 52... Kf6 {[%clk 0:00:10.9]} 53. Ra4 {[%clk 0:00:27.5]} 53...
Bf7 {[%clk 0:00:11.4]} 54. Ra5 {[%clk 0:00:27.6]} 54... Be6 {[%clk 0:00:11.3]}
55. Rb5 {[%clk 0:00:27.3]} 55... Rd4+ {[%clk 0:00:11.2]} 56. Kg3 {[%clk
0:00:26.8]} 56... Rd5 {[%clk 0:00:11.7]} 57. Rb4 {[%clk 0:00:26.8]} 57... h5
{[%clk 0:00:12.4]} 58. Rf4+ {[%clk 0:00:26.6]} 58... Bf5 {[%clk 0:00:13]} 59.
Rb4 {[%clk 0:00:26.3]} 59... Ke5 {[%clk 0:00:13]} 60. Rb6 {[%clk 0:00:26.1]}
60... Rd3 {[%clk 0:00:12.6]} 61. Rh6 {[%clk 0:00:25.8]} 61... Bg4 {[%clk
0:00:12.2]} 62. Kg2 {[%clk 0:00:21]} 62... Rxf3 {[%clk 0:00:12.8]} 63. Rg6
{[%clk 0:00:21.4]} 63... Ra3 {[%clk 0:00:13.2]} 64. Rg5+ {[%clk 0:00:21.7]}
64... Kf4 {[%clk 0:00:13.7]} 65. Rc5 {[%clk 0:00:21.3]} 65... Ra2+ {[%clk
0:00:14.3]} 66. Kg1 {[%clk 0:00:21.7]} 66... Kg3 {[%clk 0:00:15]} 0-1

[Event "*** Titled Tuesday Blitz"]
[Site "Chess.com"]
[Date "2020.05.12"]
[Round "3"]
[White "druskacik"]
[Black "elisak43"]
[Result "0-1"]
[WhiteElo "2652"]
[BlackElo "2428"]
[TimeControl "180+1"]
[EndTime "10:29:49 PDT"]
[Termination "elisak43 won by resignation"]

1. e4 {[%clk 0:03:00.9]} 1... Nf6 {[%clk 0:02:59.1]} 2. e5 {[%clk 0:03:00.7]}
2... Nd5 {[%clk 0:02:59.6]} 3. d4 {[%clk 0:03:01.3]} 3... d6 {[%clk 0:02:59.9]}
4. Nf3 {[%clk 0:03:01.9]} 4... Nb6 {[%clk 0:03:00.3]} 5. a4 {[%clk 0:03:01.4]}
5... a5 {[%clk 0:03:00.1]} 6. Bb5+ {[%clk 0:03:01.3]} 6... c6 {[%clk 0:02:59.7]}
7. Bd3 {[%clk 0:03:01.5]} 7... Bg4 {[%clk 0:02:54.9]} 8. Nbd2 {[%clk 0:02:45.1]}
8... dxe5 {[%clk 0:02:48.3]} 9. dxe5 {[%clk 0:02:43.5]} 9... e6 {[%clk
0:02:48.6]} 10. Qe2 {[%clk 0:02:41.4]} 10... N8d7 {[%clk 0:02:47.7]} 11. h3
{[%clk 0:02:37.5]} 11... Bh5 {[%clk 0:02:46.3]} 12. O-O {[%clk 0:02:31.7]} 12...
Nc5 {[%clk 0:02:43.5]} 13. Be4 {[%clk 0:02:26.1]} 13... Nxe4 {[%clk 0:02:42.3]}
14. Nxe4 {[%clk 0:02:21.8]} 14... Qc7 {[%clk 0:02:32.3]} 15. Bf4 {[%clk
0:02:12.4]} 15... Nd5 {[%clk 0:02:28.1]} 16. Bh2 {[%clk 0:02:02]} 16... Be7
{[%clk 0:01:43.7]} 17. Nd6+ {[%clk 0:01:51.4]} 17... Kf8 {[%clk 0:01:40.7]} 18.
c4 {[%clk 0:01:48.8]} 18... Nb4 {[%clk 0:01:40.7]} 19. Qe4 {[%clk 0:01:23.6]}
19... Bg6 {[%clk 0:01:39.1]} 20. Qf4 {[%clk 0:01:18.4]} 20... Nd3 {[%clk
0:01:35.4]} 21. Qd4 {[%clk 0:01:16]} 21... Rd8 {[%clk 0:01:30.8]} 22. Rad1
{[%clk 0:01:12.9]} 22... c5 {[%clk 0:01:21.6]} 23. Qc3 {[%clk 0:01:06.8]} 23...
Nb4 {[%clk 0:01:05.8]} 24. Rd2 {[%clk 0:01:01.5]} 24... h6 {[%clk 0:00:51.5]}
25. Rfd1 {[%clk 0:00:58.3]} 25... Qc6 {[%clk 0:00:45.6]} 26. Bg3 {[%clk
0:00:52.4]} 26... Kg8 {[%clk 0:00:44.6]} 27. Bh4 {[%clk 0:00:49.3]} 27... Rd7
{[%clk 0:00:19.6]} 28. b3 {[%clk 0:00:44.8]} 28... Kh7 {[%clk 0:00:19]} 29. Bxe7
{[%clk 0:00:37.7]} 29... Rxe7 {[%clk 0:00:19]} 30. Nh4 {[%clk 0:00:38.6]} 30...
Rf8 {[%clk 0:00:05.5]} 31. Nb5 {[%clk 0:00:23.8]} 31... b6 {[%clk 0:00:02.7]}
32. f3 {[%clk 0:00:21.9]} 32... Qb7 {[%clk 0:00:03]} 33. Rd6 {[%clk 0:00:20.2]}
33... Nc6 {[%clk 0:00:03]} 34. Qe3 {[%clk 0:00:19.3]} 34... Nb4 {[%clk
0:00:02.5]} 35. R1d2 {[%clk 0:00:19]} 35... Nc6 {[%clk 0:00:02.8]} 36. Kh2
{[%clk 0:00:18.8]} 36... Nb4 {[%clk 0:00:03.2]} 37. Qf2 {[%clk 0:00:18.7]} 37...
Nc6 {[%clk 0:00:03.7]} 38. Qe1 {[%clk 0:00:18.9]} 38... Nb4 {[%clk 0:00:04]} 39.
Qd1 {[%clk 0:00:19.3]} 39... Nc6 {[%clk 0:00:04.6]} 40. Rd7 {[%clk 0:00:19.2]}
40... Rxd7 {[%clk 0:00:05]} 41. Rxd7 {[%clk 0:00:19.9]} 41... Qb8 {[%clk
0:00:05.9]} 42. Qd6 {[%clk 0:00:20]} 42... Nxe5 {[%clk 0:00:05.5]} 43. Nxg6
{[%clk 0:00:18.3]} 43... Kxg6 {[%clk 0:00:05.6]} 44. Qxb8 {[%clk 0:00:16.1]}
44... Rxb8 {[%clk 0:00:06.5]} 45. Rd6 {[%clk 0:00:16.5]} 45... f6 {[%clk
0:00:06.7]} 46. Rxe6 {[%clk 0:00:16.4]} 46... Kf5 {[%clk 0:00:07.2]} 47. Rd6
{[%clk 0:00:15.4]} 47... Kf4 {[%clk 0:00:07.3]} 48. Nc3 {[%clk 0:00:14.2]} 48...
Ke3 {[%clk 0:00:07.1]} 49. Rxb6 {[%clk 0:00:14]} 49... Rxb6 {[%clk 0:00:06.6]}
50. Nd5+ {[%clk 0:00:14.9]} 50... Kd4 {[%clk 0:00:06.7]} 51. Nxb6 {[%clk
0:00:15.6]} 51... Kc3 {[%clk 0:00:07.3]} 52. f4 {[%clk 0:00:16]} 52... Nd3
{[%clk 0:00:07.2]} 53. Nd7 {[%clk 0:00:16.5]} 53... Kxb3 {[%clk 0:00:07.3]} 54.
g4 {[%clk 0:00:15.3]} 54... Kxc4 {[%clk 0:00:07.6]} 55. h4 {[%clk 0:00:15.8]}
55... Kb3 {[%clk 0:00:07.9]} 56. g5 {[%clk 0:00:14.9]} 56... fxg5 {[%clk
0:00:06.7]} 57. hxg5 {[%clk 0:00:14.8]} 57... hxg5 {[%clk 0:00:07.1]} 58. fxg5
{[%clk 0:00:15.4]} 58... c4 {[%clk 0:00:08]} 59. Nf6 {[%clk 0:00:08.1]} 59... c3
{[%clk 0:00:07.7]} 60. Nh5 {[%clk 0:00:06.3]} 60... c2 {[%clk 0:00:07.9]} 61.
Nxg7 {[%clk 0:00:07.2]} 61... c1=Q {[%clk 0:00:08.2]} 62. Nf5 {[%clk 0:00:08.1]}
62... Qc2+ {[%clk 0:00:07.8]} 63. Kg3 {[%clk 0:00:07.9]} 63... Ne5 {[%clk
0:00:08]} 64. Nd4+ {[%clk 0:00:07.4]} 64... Kc3 {[%clk 0:00:08.4]} 65. Nxc2
{[%clk 0:00:08.3]} 65... Kxc2 {[%clk 0:00:09.3]} 66. Kf4 {[%clk 0:00:08.9]}
66... Ng6+ {[%clk 0:00:08.4]} 67. Kf5 {[%clk 0:00:09.5]} 67... Nh4+ {[%clk
0:00:08.7]} 68. Kg4 {[%clk 0:00:09.5]} 68... Ng6 {[%clk 0:00:09.1]} 69. Kf5
{[%clk 0:00:10]} 69... Nf8 {[%clk 0:00:09.4]} 70. Kf6 {[%clk 0:00:08]} 70...
Nh7+ {[%clk 0:00:09.1]} 71. Kg6 {[%clk 0:00:07.9]} 71... Nxg5 {[%clk 0:00:10]}
72. Kxg5 {[%clk 0:00:08.8]} 72... Kb3 {[%clk 0:00:10.5]} 73. Kf4 {[%clk
0:00:09.7]} 73... Kxa4 {[%clk 0:00:11]} 74. Ke3 {[%clk 0:00:10.6]} 74... Kb3
{[%clk 0:00:11.5]} 75. Kd2 {[%clk 0:00:11.5]} 75... Kb2 {[%clk 0:00:11.8]} 76.
Kd3 {[%clk 0:00:12.4]} 76... a4 {[%clk 0:00:12.6]} 77. Kc4 {[%clk 0:00:13.3]}
77... a3 {[%clk 0:00:13.5]} 0-1